bitfinex/quotes_BTCUSD_20230901
["timestamp","ask_amount","ask_price","bid_price","bid_amount"]
[1693549680461,2.38466948,26047.0,26046.0,0.01232171]
[1693549680673,2.38448948,26047.0,26046.0,0.01232171]
[1693549680870,2.96103148,26047.0,26046.0,0.01232171]
[1693549681007,2.95905148,26047.0,26046.0,0.01232171]
[1693549681205,2.95815148,26047.0,26046.0,0.01232171]
[1693549681584,2.95653148,26047.0,26046.0,0.01232171]
[1693549681764,2.95575148,26047.0,26046.0,0.01232171]
[1693549682004,2.95605148,26047.0,26046.0,0.01232171]
[1693549682214,2.95545148,26047.0,26046.0,0.01232171]
[1693549682391,2.95539148,26047.0,26046.0,0.01232171]
[1693549682622,2.95521148,26047.0,26046.0,0.01232171]
[1693549682826,2.94945148,26047.0,26046.0,0.01232171]
[1693549683006,2.37302948,26047.0,26046.0,0.01232171]
[1693549683209,2.64991061,26047.0,26046.0,0.01232171]
[1693549683407,2.37308948,26047.0,26046.0,0.01232171]
[1693549683636,2.37350948,26047.0,26046.0,0.01232171]
[1693549683828,2.37272948,26047.0,26046.0,0.01232171]
[1693549683964,2.37248948,26047.0,26046.0,0.01232171]
[1693549684168,2.89064809,26047.0,26046.0,0.01232171]
[1693549684405,2.60884696,26047.0,26046.0,0.01232171]
[1693549684605,2.60740696,26047.0,26046.0,0.01232171]
[1693549684817,2.60758696,26047.0,26046.0,0.01232171]
[1693549685020,2.60932696,26047.0,26046.0,0.01232171]
[1693549685216,2.36564948,26047.0,26046.0,0.01232171]
[1693549685433,2.36786948,26047.0,26046.0,0.01232171]
[1693549685843,2.05793566,26047.0,26046.0,0.01232171]
[1693549686083,2.63345766,26047.0,26046.0,0.01232171]
[1693549686285,2.63333766,26047.0,26046.0,0.006]
[1693549686498,2.63747766,26047.0,26046.0,0.006]
[1693549686661,2.63663766,26047.0,26046.0,0.01236989]
[1693549686843,2.37086948,26047.0,26046.0,0.01236989]
[1693549687164,2.37362948,26047.0,26046.0,0.01236989]
[1693549687364,2.37554948,26047.0,26046.0,0.01236989]
[1693549687594,2.37542948,26047.0,26046.0,0.01236989]
[1693549687797,2.37536948,26047.0,26046.0,0.01236989]
[1693549687995,2.37524948,26047.0,26046.0,0.01236989]
[1693549688198,2.37518948,26047.0,26046.0,0.01236989]
[1693549688400,2.37536948,26047.0,26046.0,0.01236989]
[1693549688618,2.37518948,26047.0,26046.0,0.01236989]
[1693549688846,2.37458948,26047.0,26046.0,0.01236989]
[1693549689026,2.37452948,26047.0,26046.0,0.01236989]
[1693549689256,2.37464948,26047.0,26046.0,0.01236989]
[1693549689433,2.37458948,26047.0,26046.0,0.01236989]
[1693549689640,2.37692948,26047.0,26046.0,0.01236989]
[1693549689816,2.37698948,26047.0,26046.0,0.01236989]
[1693549690019,2.37494948,26047.0,26046.0,0.01236989]
[1693549690224,2.37482948,26047.0,26046.0,0.01236989]
[1693549690421,2.37470948,26047.0,26046.0,0.01236989]
[1693549690597,2.37488948,26047.0,26046.0,0.01236989]
[1693549690798,2.37476948,26047.0,26046.0,0.01236989]
[1693549691033,2.37458948,26047.0,26046.0,0.01236989]
[1693549691232,2.37452948,26047.0,26046.0,0.006]
[1693549691433,2.37440948,26047.0,26046.0,0.006]
[1693549691634,2.37506948,26047.0,26046.0,0.01260643]
[1693549691917,2.37422948,26047.0,26046.0,0.01260643]
[1693549692123,2.37398948,26047.0,26046.0,0.01260643]
[1693549692415,2.37482948,26047.0,26046.0,0.01260643]
[1693549692621,2.37488948,26047.0,26046.0,0.01260643]
[1693549692770,2.51049416,26047.0,26046.0,0.01260643]
[1693549693126,2.50269416,26047.0,26046.0,0.01260643]
[1693549693326,2.50263416,26047.0,26046.0,0.01260643]
[1693549693652,2.50149416,26047.0,26046.0,0.01260643]
[1693549693861,2.50143416,26047.0,26046.0,0.01260643]
[1693549694070,2.50191416,26047.0,26046.0,0.01260643]
[1693549694487,2.50173416,26047.0,26046.0,0.01260643]
[1693549694693,2.50209416,26047.0,26046.0,0.01260643]
[1693549694898,1.92141216,26047.0,26046.0,0.01260643]
[1693549695104,1.85121216,26047.0,26046.0,0.01260643]
[1693549700299,1.73301216,26047.0,26046.0,0.01260643]
[1693549700511,1.54105216,26047.0,26046.0,0.58851043]
[1693549701662,1.54105216,26047.0,26046.0,0.01260643]
[1693549704777,1.72825216,26047.0,26046.0,0.01260643]
[1693549704990,1.72603216,26047.0,26046.0,0.006]
[1693549705179,1.72585216,26047.0,26046.0,0.01309397]
[1693549705429,1.72435216,26047.0,26046.0,0.01309397]
[1693549705630,1.65925216,26047.0,26046.0,0.01309397]
[1693549707586,2.04652633,26047.0,26046.0,0.01309397]
[1693549708580,1.65925216,26047.0,26046.0,0.01309397]
[1693549712939,2.62715611,26047.0,26046.0,0.01309397]
[1693549713473,2.63087611,26047.0,26046.0,0.01309397]
[1693549713694,2.63189611,26047.0,26046.0,0.01309397]
[1693549713901,2.63087611,26047.0,26046.0,0.01309397]
[1693549714105,2.62967611,26047.0,26046.0,0.01309397]
[1693549714315,3.01785028,26047.0,26046.0,0.01309397]
[1693549714562,3.82666148,26047.0,26046.0,0.01309397]
[1693549714776,3.81994148,26047.0,26046.0,0.01309397]
[1693549714970,3.81928148,26047.0,26046.0,0.01309397]
[1693549715152,3.30247506,26047.0,26046.0,0.01309397]
[1693549715365,3.06876586,26047.0,26046.0,0.01309397]
[1693549715532,3.306345,26047.0,26046.0,0.01309397]
[1693549715734,3.306105,26047.0,26046.0,0.01309397]
[1693549715934,3.305985,26047.0,26046.0,0.01309397]
[1693549716137,3.305805,26047.0,26046.0,0.01309397]
[1693549716347,3.36557176,26047.0,26046.0,0.01309397]
[1693549716570,3.58109648,26047.0,26046.0,0.01309397]
[1693549716728,3.58127648,26047.0,26046.0,0.01309397]
[1693549716963,3.58109648,26047.0,26046.0,0.01309397]
[1693549717169,3.58049648,26047.0,26046.0,0.01309397]
[1693549717412,3.34537734,26047.0,26046.0,0.01309397]
[1693549717634,3.34519734,26047.0,26046.0,0.01309397]
[1693549717826,3.60586597,26047.0,26046.0,0.01309397]
[1693549718027,3.60484597,26047.0,26046.0,0.01309397]
[1693549718238,3.60418597,26047.0,26046.0,0.01309397]
[1693549718439,3.60136597,26047.0,26046.0,0.01309397]
[1693549718646,3.60220597,26047.0,26046.0,0.01309397]
[1693549718850,3.60214597,26047.0,26046.0,0.01309397]
[1693549719043,3.60202597,26047.0,26046.0,0.01309397]
[1693549719275,3.60196597,26047.0,26046.0,0.01309397]
[1693549719487,3.60202597,26047.0,26046.0,0.01309397]
[1693549719689,3.60196597,26047.0,26046.0,0.01309397]
[1693549719893,3.2121118,26047.0,26046.0,0.01309397]
[1693549720073,3.2120518,26047.0,26046.0,0.01309397]
[1693549720212,3.2117518,26047.0,26046.0,0.01309397]
[1693549720407,3.2115718,26047.0,26046.0,0.01309397]
[1693549720612,3.2118718,26047.0,26046.0,0.01309397]
[1693549721046,3.2117518,26047.0,26046.0,0.01309397]
[1693549721238,3.2077318,26047.0,26046.0,0.01309397]
[1693549721438,3.2109718,26047.0,26046.0,0.01309397]
[1693549721714,3.2118718,26047.0,26046.0,0.01309397]
[1693549721913,3.2118118,26047.0,26046.0,0.01309397]
[1693549722150,3.2118718,26047.0,26046.0,0.01309397]
[1693549722353,3.2119318,26047.0,26046.0,0.01309397]
[1693549722553,3.2120518,26047.0,26046.0,0.01309397]
[1693549722780,2.6332898,26047.0,26046.0,0.01309397]
[1693549722989,2.6336498,26047.0,26046.0,0.01309397]
[1693549723377,2.8257998,26047.0,26046.0,0.01309397]
[1693549723577,2.8256198,26047.0,26046.0,0.01309397]
[1693549723690,2.8258598,26047.0,26046.0,0.01309397]
[1693549723896,2.8259198,26047.0,26046.0,0.01309397]
[1693549724498,2.8256198,26047.0,26046.0,0.01309397]
[1693549724745,2.8245398,26047.0,26046.0,0.01309397]
[1693549724957,3.15533734,26047.0,26046.0,0.01309397]
[1693549725140,2.8245998,26047.0,26046.0,0.01309397]
[1693549725328,2.8233398,26047.0,26046.0,0.01309397]
[1693549725605,2.8234598,26047.0,26046.0,0.01309397]
[1693549725809,2.0576178,26047.0,26046.0,0.01309397]
[1693549728562,2.0376178,26047.0,26046.0,0.01309397]
[1693549732443,2.02180289,26047.0,26046.0,0.01309397]
[1693549734379,1.76107426,26047.0,26046.0,0.01309397]
[1693549734587,1.48470278,26047.0,26046.0,0.01309397]
[1693549736208,1.76107426,26047.0,26046.0,0.01309397]
[1693549738021,1.76106426,26047.0,26046.0,0.01309397]
[1693549743627,1.76106426,26047.0,26046.0,0.006]
[1693549743835,2.02556319,26047.0,26046.0,0.006]
[1693549748923,1.74919171,26047.0,26046.0,0.006]
[1693549749668,2.02556319,26047.0,26046.0,0.006]
[1693549750337,1.74919171,26047.0,26046.0,0.006]
[1693549751060,2.02556319,26047.0,26046.0,0.006]
[1693549751611,1.74919171,26047.0,26046.0,0.006]
[1693549751798,2.02556319,26047.0,26046.0,0.006]
[1693549763511,2.14772424,26047.0,26046.0,0.006]
[1693549766306,2.20994544,26047.0,26046.0,0.006]
[1693549766507,2.08778439,26047.0,26046.0,0.006]
[1693549766686,2.02556319,26047.0,26046.0,0.006]
[1693549766884,2.08782858,26047.0,26046.0,0.006]
[1693549767287,2.08782948,26047.0,26046.0,0.006]
[1693549772973,2.09072319,26047.0,26046.0,0.006]
[1693549773223,2.09066319,26047.0,26046.0,0.006]
[1693549773419,2.02556319,26047.0,26046.0,0.006]
[1693549773966,2.09012319,26047.0,26046.0,0.006]
[1693549774175,2.02556319,26047.0,26046.0,0.006]
[1693549774582,2.09030319,26047.0,26046.0,0.581904]
[1693549774799,2.15256961,26047.0,26046.0,1.157808]
[1693549775006,2.02556319,26047.0,26046.0,0.581904]
[1693549776474,1.92431786,26047.0,26046.0,0.581904]
[1693549776633,2.02576106,26047.0,26046.0,0.581904]
[1693549776834,2.02576106,26047.0,26046.0,0.006]
[1693549780711,2.08809325,26047.0,26046.0,0.006]
[1693549781118,2.02576106,26047.0,26046.0,0.006]
[1693549782993,0.27924397,26046.0,26045.0,1.132824]
[1693549783170,0.65705865,26046.0,26045.0,1.132824]
[1693549783582,1.35705865,26046.0,26045.0,1.132824]
[1693549783876,1.35705865,26046.0,26045.0,0.556912]
[1693549784082,1.37605865,26046.0,26045.0,0.558912]
[1693549784287,1.39305865,26046.0,26045.0,0.560912]
[1693549784488,1.39305865,26046.0,26045.0,0.004]
[1693549786031,1.74830223,26046.0,26045.0,0.004]
[1693549786495,1.39305865,26046.0,26045.0,0.004]
[1693549803516,1.78014543,26046.0,26045.0,0.004]
[1693549803725,1.84596543,26046.0,26045.0,0.004]
[1693549803919,1.78014543,26046.0,26045.0,0.004]
[1693549808054,1.56843201,26046.0,26045.0,0.004]
[1693549808319,1.95570618,26046.0,26045.0,0.004]
[1693549809464,2.14766618,26046.0,26045.0,0.004]
[1693549811557,1.76039201,26046.0,26045.0,0.004]
[1693549812221,1.82519201,26046.0,26045.0,0.004]
[1693549812415,1.82543201,26046.0,26045.0,0.004]
[1693549812628,1.82549201,26046.0,26045.0,0.004]
[1693549812817,1.76039201,26046.0,26045.0,0.004]
[1693549814335,1.82495201,26046.0,26045.0,0.004]
[1693549814656,1.82513201,26046.0,26045.0,0.004]
[1693549815225,4.12299385,26046.0,26045.0,0.004]
[1693549815438,4.39779558,26046.0,26045.0,0.004]
[1693549815648,4.38177558,26046.0,26045.0,0.004]
[1693549815854,4.07181594,26046.0,26045.0,0.004]
[1693549816074,4.07175594,26046.0,26045.0,0.004]
[1693549816273,4.0714597,26046.0,26045.0,0.004]
[1693549816472,4.0707397,26046.0,26045.0,0.004]
[1693549816647,4.0698997,26046.0,26045.0,0.004]
[1693549816885,3.4948357,26046.0,26045.0,0.004]
[1693549817114,3.4947757,26046.0,26045.0,0.004]
[1693549817521,3.4964557,26046.0,26045.0,0.004]
[1693549817723,3.4986757,26046.0,26045.0,0.004]
[1693549817938,3.4985557,26046.0,26045.0,0.004]
[1693549818135,3.4984357,26046.0,26045.0,0.004]
[1693549818405,3.4944157,26046.0,26045.0,0.004]
[1693549818615,3.4943557,26046.0,26045.0,0.004]
[1693549818820,3.4936957,26046.0,26045.0,0.004]
[1693549819020,3.4935157,26046.0,26045.0,0.004]
[1693549819227,3.22117397,26046.0,26045.0,0.004]
[1693549819427,3.47236813,26046.0,26045.0,0.004]
[1693549819639,3.47230813,26046.0,26045.0,0.004]
[1693549819842,3.47212813,26046.0,26045.0,0.004]
[1693549820017,3.47128813,26046.0,26045.0,0.004]
[1693549820225,3.47122813,26046.0,26045.0,0.004]
[1693549820422,3.47272813,26046.0,26045.0,0.004]
[1693549820648,3.47290813,26046.0,26045.0,0.004]
[1693549820821,3.22327397,26046.0,26045.0,0.004]
[1693549821027,3.22417397,26046.0,26045.0,0.004]
[1693549821231,3.22411397,26046.0,26045.0,0.004]
[1693549821404,3.22573397,26046.0,26045.0,0.004]
[1693549821607,3.43938447,26046.0,26045.0,0.004]
[1693549821934,3.43920447,26046.0,26045.0,0.004]
[1693549822264,3.43968447,26046.0,26045.0,0.004]
[1693549822436,3.43974447,26046.0,26045.0,0.004]
[1693549822636,3.43956447,26046.0,26045.0,0.004]
[1693549822838,3.43980447,26046.0,26045.0,0.004]
[1693549823061,3.44070447,26046.0,26045.0,0.004]
[1693549823245,3.44106447,26046.0,26045.0,0.004]
[1693549823447,3.44070447,26046.0,26045.0,0.004]
[1693549823658,3.44028447,26046.0,26045.0,0.004]
[1693549823997,3.23581397,26046.0,26045.0,0.004]
[1693549824198,3.50628674,26046.0,26045.0,0.004]
[1693549824413,3.50328674,26046.0,26045.0,0.004]
[1693549824622,3.50022674,26046.0,26045.0,0.004]
[1693549824797,3.49740674,26046.0,26045.0,0.004]
[1693549825001,3.49758674,26046.0,26045.0,0.004]
[1693549825210,3.49752674,26046.0,26045.0,0.004]
[1693549825369,3.49902674,26046.0,26045.0,0.004]
[1693549825579,3.49914674,26046.0,26045.0,0.004]
[1693549825791,3.49938674,26046.0,26045.0,0.004]
[1693549826036,3.49932674,26046.0,26045.0,0.004]
[1693549826234,3.49920674,26046.0,26045.0,0.004]
[1693549826446,3.49806674,26046.0,26045.0,0.004]
[1693549826655,3.49842674,26046.0,26045.0,0.004]
[1693549826829,3.50328674,26046.0,26045.0,0.004]
[1693549827049,3.50298674,26046.0,26045.0,0.004]
[1693549827246,3.50304674,26046.0,26045.0,0.004]
[1693549827466,3.50274674,26046.0,26045.0,0.004]
[1693549827665,3.50220674,26046.0,26045.0,0.004]
[1693549827869,3.50202674,26046.0,26045.0,0.004]
[1693549828066,3.50166674,26046.0,26045.0,0.004]
[1693549828280,3.49530674,26046.0,26045.0,0.004]
[1693549828449,3.49410674,26046.0,26045.0,0.004]
[1693549828829,3.49698674,26046.0,26045.0,0.004]
[1693549829014,3.49458674,26046.0,26045.0,0.004]
[1693549829157,3.48996674,26046.0,26045.0,0.004]
[1693549829361,3.31513674,26046.0,26045.0,0.004]
[1693549829569,3.31555674,26046.0,26045.0,0.004]
[1693549829772,3.31513674,26046.0,26045.0,0.004]
[1693549829997,3.31537674,26046.0,26045.0,0.004]
[1693549830199,3.31531674,26046.0,26045.0,0.004]
[1693549830550,3.31525674,26046.0,26045.0,0.004]
[1693549830730,3.31153674,26046.0,26045.0,0.004]
[1693549830910,2.73215274,26046.0,26045.0,0.004]
[1693549831127,2.73179274,26046.0,26045.0,0.004]
[1693549831468,2.73167274,26046.0,26045.0,0.004]
[1693549831676,2.73131274,26046.0,26045.0,0.004]
[1693549831869,2.73119274,26046.0,26045.0,0.004]
[1693549832482,2.73125274,26046.0,26045.0,0.004]
[1693549832679,2.90537274,26046.0,26045.0,0.004]
[1693549833725,2.90531274,26046.0,26045.0,0.004]
[1693549833908,2.90765274,26046.0,26045.0,0.004]
[1693549834248,2.90777274,26046.0,26045.0,0.004]
[1693549834423,2.90783274,26046.0,26045.0,0.004]
[1693549834628,1.4806218,26046.0,26045.0,0.004]
[1693549834917,1.4806218,26046.0,26045.0,0.579926]
[1693549835105,1.75697784,26046.0,26045.0,1.155852]
[1693549835326,1.69287602,26046.0,26045.0,1.155852]
[1693549836003,1.69287602,26046.0,26045.0,0.579926]
[1693549836227,1.75888594,26046.0,26045.0,0.579926]
[1693549836460,1.69287602,26046.0,26045.0,0.579926]
[1693549837302,1.75832679,26046.0,26045.0,0.579926]
[1693549837477,1.6928665,26046.0,26045.0,0.579926]
[1693549837876,1.48201666,26046.0,26045.0,0.579926]
[1693549838085,1.75838861,26046.0,26045.0,0.579926]
[1693549838668,1.56641861,26046.0,26045.0,0.579926]
[1693549838874,1.75838861,26046.0,26045.0,0.579926]
[1693549839258,1.48201666,26046.0,26045.0,0.579926]
[1693549840197,1.75840258,26046.0,26045.0,0.579926]
[1693549840357,1.48201666,26046.0,26045.0,0.004]
[1693549840550,1.54705666,26046.0,26045.0,0.004]
[1693549840750,1.54711666,26046.0,26045.0,0.004]
[1693549840963,1.54723666,26046.0,26045.0,0.004]
[1693549841171,1.54741666,26046.0,26045.0,0.004]
[1693549841370,1.54735666,26046.0,26045.0,0.004]
[1693549841814,1.54741666,26046.0,26045.0,0.004]
[1693549842020,1.54747666,26046.0,26045.0,0.004]
[1693549842226,1.54759666,26046.0,26045.0,0.004]
[1693549842425,1.54771666,26046.0,26045.0,0.004]
[1693549842761,1.54777666,26046.0,26045.0,0.004]
[1693549842953,1.54783666,26046.0,26045.0,0.004]
[1693549843125,1.54789666,26046.0,26045.0,0.004]
[1693549843433,1.54801666,26046.0,26045.0,0.004]
[1693549843609,1.54753666,26046.0,26045.0,0.004]
[1693549843957,1.54735666,26046.0,26045.0,0.004]
[1693549844307,1.54831666,26046.0,26045.0,0.004]
[1693549844647,1.54843666,26046.0,26045.0,0.004]
[1693549844888,1.54861666,26046.0,26045.0,0.004]
[1693549845111,1.54879666,26046.0,26045.0,0.004]
[1693549845658,1.54987666,26046.0,26045.0,0.004]
[1693549846054,1.55005666,26046.0,26045.0,0.004]
[1693549846300,1.54987666,26046.0,26045.0,0.004]
[1693549846823,1.54993666,26046.0,26045.0,0.004]
[1693549847182,1.54987666,26046.0,26045.0,0.004]
[1693549847385,1.54975666,26046.0,26045.0,0.004]
[1693549847613,1.54999666,26046.0,26045.0,0.004]
[1693549847971,1.55005666,26046.0,26045.0,0.004]
[1693549848168,1.76669801,26046.0,26045.0,0.004]
[1693549848389,1.85351738,26046.0,26045.0,0.004]
[1693549848588,1.85585738,26046.0,26045.0,0.004]
[1693549848974,1.85417738,26046.0,26045.0,0.004]
[1693549849151,1.85387738,26046.0,26045.0,0.004]
[1693549849282,1.85363738,26046.0,26045.0,0.004]
[1693549849487,1.85417738,26046.0,26045.0,0.004]
[1693549849714,1.85387738,26046.0,26045.0,0.004]
[1693549849909,1.09492988,26046.0,26045.0,0.004]
[1693549850121,1.11391262,26046.0,26045.0,1.849978]
[1693549850522,0.8374432,26046.0,26045.0,1.849978]
[1693549853022,0.736,26046.0,26045.0,1.849978]
[1693549855773,0.96631941,26046.0,26045.0,1.849978]
[1693549856442,0.736,26046.0,26045.0,1.849978]
[1693549856762,0.9663167,26046.0,26045.0,1.849978]
[1693549857304,0.736,26046.0,26045.0,1.849978]
[1693549860788,0.9532815,26046.0,26045.0,1.155852]
[1693549861008,1.05456656,26046.0,26045.0,0.004]
[1693549862675,1.70815334,26046.0,26045.0,0.004]
[1693549862876,2.29695734,26046.0,26045.0,0.004]
[1693549863123,2.29731734,26046.0,26045.0,0.004]
[1693549863326,2.29269734,26046.0,26045.0,0.004]
[1693549863547,2.67631151,26046.0,26045.0,0.004]
[1693549863747,2.67673151,26046.0,26045.0,0.004]
[1693549863962,3.55873326,26046.0,26045.0,0.004]
[1693549864164,3.65065767,26046.0,26045.0,0.004]
[1693549864331,3.66589767,26046.0,26045.0,0.004]
[1693549864568,3.97481376,26046.0,26045.0,0.004]
[1693549864903,3.97469376,26046.0,26045.0,0.004]
[1693549865031,4.36136793,26046.0,26045.0,0.004]
[1693549865419,4.35932793,26046.0,26045.0,0.004]
[1693549865616,4.35800793,26046.0,26045.0,0.004]
[1693549865819,4.36280793,26046.0,26045.0,0.004]
[1693549866067,4.35476793,26046.0,26045.0,0.004]
[1693549866279,4.21298793,26046.0,26045.0,0.004]
[1693549866615,3.82571376,26046.0,26045.0,0.004]
[1693549866772,3.95645376,26046.0,26045.0,0.004]
[1693549867117,3.95573376,26046.0,26045.0,0.004]
[1693549867231,3.82607376,26046.0,26045.0,0.004]
[1693549867435,3.82571376,26046.0,26045.0,0.004]
[1693549867635,4.21274793,26046.0,26045.0,0.004]
[1693549867884,4.21244793,26046.0,26045.0,0.004]
[1693549868080,3.90119184,26046.0,26045.0,0.004]
[1693549868280,3.90071184,26046.0,26045.0,0.004]
[1693549868528,3.90029184,26046.0,26045.0,0.004]
[1693549868718,3.90005184,26046.0,26045.0,0.004]
[1693549868982,3.89987184,26046.0,26045.0,0.004]
[1693549869156,3.90017184,26046.0,26045.0,0.004]
[1693549869327,4.34288793,26046.0,26045.0,0.004]
[1693549869686,4.24136287,26046.0,26045.0,0.004]
[1693549869889,4.21225558,26046.0,26045.0,0.004]
[1693549870097,4.21231558,26046.0,26045.0,0.004]
[1693549870297,4.21165558,26046.0,26045.0,0.004]
[1693549870585,4.21153558,26046.0,26045.0,0.004]
[1693549870779,4.21123558,26046.0,26045.0,0.004]
[1693549870959,3.89793949,26046.0,26045.0,0.004]
[1693549871338,3.89673949,26046.0,26045.0,0.004]
[1693549871523,3.89655949,26046.0,26045.0,0.004]
[1693549871725,3.89631949,26046.0,26045.0,0.004]
[1693549872110,3.89583949,26046.0,26045.0,0.004]
[1693549872319,3.89565949,26046.0,26045.0,0.004]
[1693549872519,3.89541949,26046.0,26045.0,0.004]
[1693549872722,3.89523949,26046.0,26045.0,0.004]
[1693549872942,3.89505949,26046.0,26045.0,0.004]
[1693549873072,3.89475949,26046.0,26045.0,0.004]
[1693549873275,3.70259949,26046.0,26045.0,0.004]
[1693549873478,3.89441949,26046.0,26045.0,0.004]
[1693549873720,3.88919949,26046.0,26045.0,0.004]
[1693549873921,3.88901949,26046.0,26045.0,0.004]
[1693549874127,3.88865949,26046.0,26045.0,0.004]
[1693549874303,3.88847949,26046.0,26045.0,0.004]
[1693549874499,3.88739949,26046.0,26045.0,0.004]
[1693549874700,3.88523949,26046.0,26045.0,0.004]
[1693549874931,3.88031949,26046.0,26045.0,0.004]
[1693549875329,3.88019949,26046.0,26045.0,0.004]
[1693549875531,3.88067949,26046.0,26045.0,0.004]
[1693549875734,3.88061949,26046.0,26045.0,0.004]
[1693549875940,3.87977949,26046.0,26045.0,0.004]
[1693549876113,3.87257949,26046.0,26045.0,0.004]
[1693549876313,3.87293949,26046.0,26045.0,0.004]
[1693549876534,3.87245949,26046.0,26045.0,0.004]
[1693549876725,3.87203949,26046.0,26045.0,0.0059]
[1693549876927,3.87611949,26046.0,26045.0,0.0059]
[1693549877140,3.87971949,26046.0,26045.0,0.0059]
[1693549877293,3.87641949,26046.0,26045.0,0.0059]
[1693549877495,3.87623949,26046.0,26045.0,0.0059]
[1693549877673,3.87695949,26046.0,26045.0,0.0059]
[1693549877871,3.87977949,26046.0,26045.0,0.0059]
[1693549878072,3.88325949,26046.0,26045.0,0.0059]
[1693549878324,3.88319949,26046.0,26045.0,0.0059]
[1693549878518,3.88295949,26046.0,26045.0,0.0059]
[1693549878729,3.88565949,26046.0,26045.0,0.0059]
[1693549878931,3.88553949,26046.0,26045.0,0.0059]
[1693549879168,3.88541949,26046.0,26045.0,0.0059]
[1693549879307,3.88559949,26046.0,26045.0,0.0059]
[1693549879508,3.88535949,26046.0,26045.0,0.0059]
[1693549879714,3.88499949,26046.0,26045.0,0.0059]
[1693549879882,3.88709949,26046.0,26045.0,0.0059]
[1693549880134,3.88793949,26046.0,26045.0,0.0059]
[1693549880307,3.88745949,26046.0,26045.0,0.0059]
[1693549880507,3.88751949,26046.0,26045.0,0.0059]
[1693549880734,3.88673949,26046.0,26045.0,0.0059]
[1693549880944,3.88667949,26046.0,26045.0,0.0059]
[1693549881183,3.88247949,26046.0,26045.0,0.0059]
[1693549881389,3.88391949,26046.0,26045.0,0.0059]
[1693549881616,3.88349949,26046.0,26045.0,0.0059]
[1693549881751,3.88415949,26046.0,26045.0,0.0059]
[1693549882153,3.88481949,26046.0,26045.0,0.0059]
[1693549882429,3.88511949,26046.0,26045.0,0.0059]
[1693549882614,3.88541949,26046.0,26045.0,0.0059]
[1693549882803,3.86653949,26046.0,26045.0,0.0039]
[1693549883138,3.86791949,26046.0,26045.0,0.0039]
[1693549883280,3.85043949,26046.0,26045.0,0.0019]
[1693549883501,3.92237949,26046.0,26045.0,0.0079]
[1693549883891,0.04,26039.0,26037.0,0.020099]
[1693549884091,2.79498549,26038.0,26037.0,0.020099]
[1693549884308,3.44596884,26038.0,26037.0,0.020099]
[1693549884519,2.71101149,26038.0,26037.0,0.020099]
[1693549884727,2.86481449,26038.0,26037.0,0.020099]
[1693549884942,2.14722078,26038.0,26037.0,0.020099]
[1693549885124,2.18722078,26038.0,26037.0,0.020099]
[1693549885356,3.44112014,26038.0,26037.0,0.020099]
[1693549885559,1.57113978,26038.0,26037.0,0.020099]
[1693549885937,1.66280388,26038.0,26037.0,0.020099]
[1693549886532,1.50900088,26038.0,26037.0,0.020099]
[1693549886734,1.72884995,26038.0,26037.0,0.020099]
[1693549887156,2.03476485,26038.0,26037.0,0.020099]
[1693549887357,2.03376485,26038.0,26037.0,0.020099]
[1693549887796,1.80390075,26038.0,26037.0,0.020099]
[1693549887999,1.83990075,26038.0,26037.0,0.020099]
[1693549888648,1.97774474,26038.0,26037.0,0.020099]
[1693549889028,1.79389567,26038.0,26037.0,0.020099]
[1693549889458,1.48798077,26038.0,26037.0,0.020099]
[1693549889669,1.4420249,26038.0,26037.0,0.020099]
[1693549889848,1.4420249,26038.0,26037.0,1.172305]
[1693549890054,1.35013678,26038.0,26037.0,1.172305]
[1693549890470,1.35013678,26038.0,26037.0,0.596202]
[1693549891482,1.35013678,26038.0,26037.0,1.172305]
[1693549891684,1.35013678,26038.0,26037.0,0.596202]
[1693549891892,1.15808678,26038.0,26037.0,0.596202]
[1693549892095,3.47072981,26038.0,26037.0,0.020099]
[1693549892303,3.79083475,26038.0,26037.0,0.020099]
[1693549892514,3.78291475,26038.0,26037.0,0.020099]
[1693549892715,3.59786568,26038.0,26037.0,0.020099]
[1693549892917,3.75088668,26038.0,26037.0,0.020099]
[1693549893119,3.75076668,26038.0,26037.0,0.020099]
[1693549893329,3.75064668,26038.0,26037.0,0.020099]
[1693549893529,3.75214668,26038.0,26037.0,0.020099]
[1693549893782,3.75190668,26038.0,26037.0,0.020099]
[1693549893984,3.84357139,26038.0,26037.0,0.020099]
[1693549894211,3.84411139,26038.0,26037.0,0.020099]
[1693549894418,3.84399139,26038.0,26037.0,0.020099]
[1693549894630,3.84321139,26038.0,26037.0,0.020099]
[1693549894844,3.7054274,26038.0,26037.0,0.020099]
[1693549895054,3.7082474,26038.0,26037.0,0.020099]
[1693549895271,3.7078874,26038.0,26037.0,0.020099]
[1693549895476,3.7086074,26038.0,26037.0,0.020099]
[1693549895676,3.7087874,26038.0,26037.0,0.020099]
[1693549895791,3.7093274,26038.0,26037.0,0.020099]
[1693549895999,3.7092074,26038.0,26037.0,0.020099]
[1693549896205,3.55110051,26038.0,26037.0,0.020099]
[1693549896438,4.05941031,26038.0,26037.0,0.020099]
[1693549896648,4.27801378,26038.0,26037.0,0.020099]
[1693549896850,4.00764049,26038.0,26037.0,0.020099]
[1693549897105,3.68887142,26038.0,26037.0,0.020099]
[1693549897304,4.07644559,26038.0,26037.0,0.020099]
[1693549897508,3.49424459,26038.0,26037.0,0.020099]
[1693549897738,3.42908459,26038.0,26037.0,0.020099]
[1693549897913,3.04181042,26038.0,26037.0,0.020099]
[1693549898529,3.11381042,26038.0,26037.0,0.020099]
[1693549898669,2.01344419,26038.0,26037.0,0.020099]
[1693549898921,2.43680802,26038.0,26037.0,0.020099]
[1693549899125,3.01324902,26038.0,26037.0,0.020099]
[1693549899336,3.01330902,26038.0,26037.0,0.020099]
[1693549899535,3.01204902,26038.0,26037.0,0.020099]
[1693549899786,3.01264902,26038.0,26037.0,0.020099]
[1693549899956,3.10758124,26038.0,26037.0,0.020099]
[1693549900176,3.10752124,26038.0,26037.0,0.020099]
[1693549900381,3.08842124,26038.0,26037.0,0.020099]
[1693549900581,3.28248124,26038.0,26037.0,0.020099]
[1693549900786,3.28332124,26038.0,26037.0,0.020099]
[1693549900962,3.28410124,26038.0,26037.0,0.020099]